Cogmind - Beta 13 @@@ ROGUE MODE // 2024.04.09 @ 20:01:02 Player: Olafz Result: Destroyed by G-47 Trooper with Particle Gun Performance ------------- Evolutions (2) 1000 Regions Visited (5) 1000 Robots Destroyed (20) 100 Value Destroyed (444) 444 Prototype IDs (1) 20 Alien Tech Used (0) 0 Bonus (0) 0 TOTAL SCORE: 2564 Bonus ------- None Cogmind --------- Core Integrity 0/550 Matter 176/300 Energy 100/100 System Corruption 0% Temperature Cool (18) Movement Core (50) Location -8/Materials Parts ------- > --- POWER (1) -------- (None) > --- PROPULSION (2) --- (None) > --- UTILITY (6) ------ (None) > --- WEAPON (2) ------- (None) > --- INVENTORY (5) ---- Light Ion Engine Actuator Array Hardened Medium Armor Plating Light Assault Rifle Plasma Cutter Peak State ------------ > --- POWER ------------ Ion Engine > --- PROPULSION ------- Improved Treads > --- UTILITY ---------- Medium Storage Unit Visual Processing Unit Actuator Array Hardlight Generator > --- WEAPON ----------- Improved EM Shotgun Mining Laser > --- INVENTORY -------- Ion Engine Light Ion Engine Small Storage Unit Weight Redist. System Actuator Array Particle Cannon Light Assault Rifle Datajack Plasma Cutter [Rating: 17] Favorites ----------- Power Ion Engine Engine Ion Engine Propulsion Aluminum Leg Treads Improved Treads Leg Aluminum Leg Utility Visual Processing Unit Device Actuator Array Storage Small Storage Unit Processor Visual Processing Unit Weapon Assault Rifle Energy Gun Improved EM Shotgun Ballistic Gun Assault Rifle Ballistic Cannon Light Cannon Launcher Grenade Launcher Special Weapon Mining Laser Build | -11 -10 -10 -9 -9 -8 ------- Run | Yrd Mat Min Mat Min Mat Slots Evolved 4 | . . . 2 . 2 Power . | . . . . . . Propulsion . | . . . . . . Utility 4 | . . . 2 . 2 Weapon . | . . . . . . Parts Attached 12 | . 1 . 3 3 5 Power 1 | . . . . 1 . Engine 1 | . . . . 1 . Core . | . . . . . . Reactor . | . . . . . . Propulsion 1 | . . . . 1 . Treads 1 | . . . . 1 . Leg . | . . . . . . Wheel . | . . . . . . Hover . | . . . . . . Flight . | . . . . . . Utility 4 | . 1 . . 1 2 Device 2 | . . . . . 2 Storage 1 | . . . . 1 . Processor 1 | . 1 . . . . Hackware . | . . . . . . Protection . | . . . . . . Artifact . | . . . . . . Weapon 6 | . . . 3 . 3 Energy Gun 1 | . . . 1 . . Energy Cannon . | . . . . . . Ballistic Gun 1 | . . . . . 1 Ballistic Cannon 1 | . . . . . 1 Launcher 2 | . . . 1 . 1 Special Weapon 1 | . . . 1 . . Impact Weapon . | . . . . . . Slashing Weapon . | . . . . . . Piercing Weapon . | . . . . . . Special Melee Weapon . | . . . . . . Unidentified Prototypes 1 | . . . 1 . . Parts Lost 15 | . . 4 2 . 9 Power 2 | . . 1 . . 1 Propulsion 3 | . . 1 1 . 1 Utility 4 | . . . . . 4 Weapon 6 | . . 2 1 . 3 Highest Loss Streak 9 | . . 4 1 . 9 To Critical Strikes . | . . . . . . Average Slot Usage (%) 67 | . 90 91 39 56 61 Engine 8 | . 14 11 . 9 7 Treads 3 | . . . . 2 7 Leg 9 | . 28 25 4 . . Device 5 | . . . . . 14 Storage 11 | . 14 14 11 11 8 Processor 9 | . 5 14 11 11 7 Energy Gun 3 | . . . 5 11 3 Ballistic Gun 10 | . 28 25 . . 4 Ballistic Cannon 1 | . . . . . 3 Special Weapon 3 | . . . . 11 3 Naked Turns . | . . . . . . Heaviest Build 30 | 14 14 14 11 19 30 Greatest Support 23 | 20 20 20 10 23 23 Greatest Overweight (x) 5 | . . 1 3 4 5 Average Overweight (x) . | . . . 1 2 1 Largest Inventory Capacity 10 | . 8 8 8 10 10 Average Capacity 8 | . 8 8 8 8 9 Most Carried 10 | . 5 5 5 8 10 Average Carried 6 | . 4 5 4 5 8 Final Capacity 10 | 8 8 8 8 10 5 Final Carried 8 | 6 5 5 4 8 5 Class Distribution -------------------- 100% | Mutant Dominant Class ---------------- Mutant | -10/Materials Mutant | -10/Mines Mutant | -9/Materials Mutant | -9/Mines Mutant | -8/Materials Resources | -11 -10 -10 -9 -9 -8 ----------- Run | Yrd Mat Min Mat Min Mat Matter Collected 412 | 200 30 62 . 120 . Remotely . | . . . . . . Salvage Created 393 | . 74 . 38 47 234 Parts 25 | . 7 . 8 1 9 Haulers Intercepted 2 | . 1 . . . 1 Recyclers Shooed 1 | . . . . . 1 Parts Field Recycled . | . . . . . . Retrieved Matter . | . . . . . . Parts Self-Destructed . | . . . . . . Prevented . | . . . . . . Kills | -11 -10 -10 -9 -9 -8 ------- Run | Yrd Mat Min Mat Min Mat Combat Hostiles Destroyed 15 | . . . 5 1 9 Guns 1 | . . . . 1 . AOE 14 | . . . 5 . 9 Classes Destroyed 7 | . 2 . 2 1 2 Worker 1 | . . . . . 1 Hauler 2 | . 1 . . . 1 Recycler 1 | . . . . . 1 Watcher 1 | . 1 . . . . Swarmer 8 | . . . 4 . 4 Grunt 6 | . . . . 1 5 Sentry 1 | . . . 1 . . Best Kill Streak 12 | . 1 . 4 1 12 Combat Bots Only 9 | . . . 4 1 9 Max Kills in Single Turn 6 | . 1 . 3 1 6 Gunslinging . | . . . . . . Exploded 4 | . . . 3 . 4 Melee . | . . . . . . Uniques/NPCs Destroyed . | . . . . . . Combat | -11 -10 -10 -9 -9 -8 -------- Run | Yrd Mat Min Mat Min Mat Hostile Shots Fired 183 | . . 18 38 3 124 Missed 49 | . . 2 12 1 34 Damage Taken 2217 | . . 591 280 22 1324 Core 797 | . . 130 106 . 561 Absorbed by Shields . | . . . . . . Core Remaining (%) 73 | 100 . 48 . 73 . Volleys Fired 36 | . 14 . 8 3 11 Largest 2 | . 2 . 1 1 2 Hottest 55 | . 40 . 45 45 55 Shots Fired 54 | . 28 . 8 3 15 Gun 36 | . 28 . 1 3 4 Cannon 4 | . . . . . 4 Launcher 14 | . . . 7 . 7 Special . | . . . . . . Kinetic 36 | . 28 . . . 8 Thermal . | . . . . . . Explosive 14 | . . . 7 . 7 Electromagnetic 4 | . . . 1 3 . Robot Hit Streak 6 | . 3 . 4 4 6 Robot Miss Streak 4 | . 4 . 2 1 2 Penetration Max . | . . . . . . Secondary Targets . | . . . . . . Shots Hit Robots 34 | . 13 . 6 3 12 Core Hits 35 | . 3 . 11 2 19 Critical Kills 1 | . 1 . . . . Critical Parts Destroyed . | . . . . . . Critical Strikes 1 | . 1 . . . . Destroy 1 | . 1 . . . . Melee Attacks . | . . . . . . Impact . | . . . . . . Slashing . | . . . . . . Piercing . | . . . . . . Sneak Attacks . | . . . . . . Combat Hostiles . | . . . . . . Follow-up Attacks . | . . . . . . Damage Inflicted 1644 | . 170 . 230 58 1186 Guns 286 | . 165 . 11 58 52 Cannons 50 | . . . . . 50 Explosions 1303 | . . . 219 . 1084 Melee . | . . . . . . Ramming 5 | . 5 . . . . Kinetic 267 | . 165 . . . 102 Thermal . | . . . . . . Explosive 1303 | . . . 219 . 1084 Electromagnetic 69 | . . . 11 58 . Impact . | . . . . . . Slashing . | . . . . . . Piercing . | . . . . . . Highest Corruption . | . . . . . . Average Corruption . | . . . . . . Corruption Purged . | . . . . . . Corruption Blocked . | . . . . . . Overload Shots . | . . . . . . Overflow Damage 35 | . . . . . 35 Projectiles . | . . . . . . Explosions 35 | . . . . . 35 Melee . | . . . . . . Knockbacks 1 | . . . . . 1 Impact . | . . . . . . Kinetic 1 | . . . . . 1 Secondary . | . . . . . . Self-Inflicted Damage 60 | . . . . . 60 Shots 3 | . . . . . 3 Rammed . | . . . . . . Targets Rammed 1 | . 1 . . . . Kicked 1 | . 1 . . . . Crushed . | . . . . . . Highest Temperature 55 | . . . . 5 55 Average Temperature 19 | . . . . 3 22 Received Heat Transfer 826 | . . 40 81 12 693 Siege Activations . | . . . . . . Robots Corrupted . | . . . . . . Combat Hostiles . | . . . . . . Parts Fried . | . . . . . . Impact Corruptions . | . . . . . . Robots Melted . | . . . . . . Combat Hostiles . | . . . . . . Parts Melted . | . . . . . . Heat Transferred . | . . . . . . Parts Sabotaged . | . . . . . . Parts Stolen . | . . . . . . Parts Stripped . | . . . . . . Power Chain Reactions . | . . . . . . Alert | -11 -10 -10 -9 -9 -8 ------- Run | Yrd Mat Min Mat Min Mat Peak Influence 254 | . 21 7 167 114 254 Initial 61 | . . 7 . 61 44 Average 46 | . 7 5 103 64 59 Maximum Alert Level 1 | . . . . . 1 Low Security (%) 97 | . 100 100 100 100 92 Level 1 2 | . . . . . 7 Level 2 . | . . . . . . Level 3 . | . . . . . . Level 4 . | . . . . . . Level 5 . | . . . . . . High Security . | . . . . . . Max Security . | . . . . . . Squads Dispatched 3 | . . . 1 1 1 Investigation 3 | . . . 1 1 1 Extermination . | . . . . . . Reinforcement . | . . . . . . Assault . | . . . . . . Garrison . | . . . . . . Intercept . | . . . . . . Searches Triggered . | . . . . . . Construction Impeded . | . . . . . . Haulers Reinforced . | . . . . . . Active Scanning Responses . | . . . . . . Cargo Convoy Interrupts . | . . . . . . Stealth | -11 -10 -10 -9 -9 -8 --------- Run | Yrd Mat Min Mat Min Mat Distress Signals 2 | . . . . . 2 Communications Jammed . | . . . . . . Distress Signals . | . . . . . . Times Spotted 38 | . 2 11 8 1 16 Peak Tracking Total 11 | . 1 6 4 1 11 Tactical Retreats . | . . . . . . Traps | -11 -10 -10 -9 -9 -8 ------- Run | Yrd Mat Min Mat Min Mat Traps Triggered 1 | . . . . . 1 Indirectly . | . . . . . . Trap Hack Attempts . | . . . . . . Triggered . | . . . . . . Disarmed . | . . . . . . Reprogrammed . | . . . . . . Reused . | . . . . . . Traps Extracted . | . . . . . . Installed . | . . . . . . Triggered . | . . . . . . Machines | -11 -10 -10 -9 -9 -8 ---------- Run | Yrd Mat Min Mat Min Mat Machines Disabled 2 | . . . . . 2 Max in Single Turn 1 | . . . . . 1 Machines Repaired . | . . . . . . Machines Dismantled . | . . . . . . Machines Sabotaged . | . . . . . . Overloaded Fab Kills . | . . . . . . Hacking | -11 -10 -10 -9 -9 -8 --------- Run | Yrd Mat Min Mat Min Mat Machines Accessed 4 | . 2 . 1 1 . Terminals 4 | . 2 . 1 1 . Fabricators . | . . . . . . Repair Stations . | . . . . . . Recycling Units . | . . . . . . Scanalyzers . | . . . . . . Garrison Access . | . . . . . . Total Hacks 13 | . 7 . 3 3 . Successful 5 | . 3 . 1 1 . Failed 8 | . 4 . 2 2 . Catastrophic 2 | . . . . 2 . Database Lockouts . | . . . . . . Manual 13 | . 7 . 3 3 . Terminals 13 | . 7 . 3 3 . Fabricators . | . . . . . . Repair Stations . | . . . . . . Recycling Units . | . . . . . . Scanalyzers . | . . . . . . Garrison Access . | . . . . . . Terminal Hacks 2 | . 1 . . 1 . Branch Access Points 2 | . 1 . . 1 . Fabricator Hacks . | . . . . . . Repair Station Hacks . | . . . . . . Recycling Unit Hacks . | . . . . . . Scanalyzer . | . . . . . . Garrison Access Hacks . | . . . . . . Unauthorized Hacks 3 | . 2 . 1 . . Terminals 3 | . 2 . 1 . . Botnet 3 | . 2 . 1 . . Fabricators . | . . . . . . Repair Stations . | . . . . . . Recycling Units . | . . . . . . Scanalyzers . | . . . . . . Garrison Access . | . . . . . . Data Cores Recovered . | . . . . . . Used . | . . . . . . Hacking Detections 4 | . 2 . 1 1 . Full Trace Events 3 | . 1 . 1 1 . Feedback Events . | . . . . . . Feedback Blocked . | . . . . . . Robot Schematics Acquired . | . . . . . . Robots Built . | . . . . . . Authchips . | . . . . . . Time . | . . . . . . Total Robot Build Rating . | . . . . . . Part Schematics Acquired . | . . . . . . Parts Built . | . . . . . . Authchips . | . . . . . . Time . | . . . . . . Total Part Build Rating . | . . . . . . Parts Repaired . | . . . . . . Time . | . . . . . . Parts Recycled . | . . . . . . Recycled Matter . | . . . . . . Retrieved Matter . | . . . . . . Retrieved Components . | . . . . . . Parts Scanalyzed . | . . . . . . Part Schematics Acquired . | . . . . . . Parts Damaged . | . . . . . . Bothacking | -11 -10 -10 -9 -9 -8 ------------ Run | Yrd Mat Min Mat Min Mat Used RIF Installer . | . . . . . . Robots Hacked . | . . . . . . Non-combat . | . . . . . . Combat . | . . . . . . Robot Hacks Applied . | . . . . . . Relay Couplers Released . | . . . . . . Fabnet Peak Effective % . | . . . . . . Robots Rewired . | . . . . . . Allies Hacked . | . . . . . . Hacks Repelled . | . . . . . . Allies | -11 -10 -10 -9 -9 -8 -------- Run | Yrd Mat Min Mat Min Mat Total Allies . | . . . . . . Largest Group . | . . . . . . Highest-Rated Group . | . . . . . . Highest-Rated Ally . | . . . . . . Total Orders . | . . . . . . Ally Attacks . | . . . . . . Total Damage . | . . . . . . Kills . | . . . . . . Allies Corrupted . | . . . . . . Allies Melted . | . . . . . . Intel | -11 -10 -10 -9 -9 -8 ------- Run | Yrd Mat Min Mat Min Mat Robot Analysis Total . | . . . . . . Derelict Logs Recovered 2 | . . 2 . . . Drone Launches . | . . . . . . Drone Recoveries . | . . . . . . Exploration | -11 -10 -10 -9 -9 -8 ------------- Run | Yrd Mat Min Mat Min Mat Turns Passed 1187 | . 223 193 142 215 414 Spaces Moved 651 | 1 143 158 78 97 174 Core 147 | . . . 38 71 38 Treads 162 | . . . . 26 136 Legs 342 | 1 143 158 40 . . Wheels . | . . . . . . Hover . | . . . . . . Flight . | . . . . . . Fastest Speed 100 | 120 120 120 120 150 100 Average Speed 162 | 120 120 122 148 208 213 Slowest Speed 300 | 120 120 190 200 250 300 Overloaded Moves . | . . . . . . Propulsion Burnouts . | . . . . . . Robots Hopped . | . . . . . . Cave-ins Triggered . | . . . . . . Exploration Rate (%) 27 | 2 31 54 20 31 24 Regions Visited 5 Branch Regions 2 Pre-discovered Areas . | . . . . . . Known Exits Taken 1 | . 1 . . . . Unknown Exits Taken 4 | 1 . 1 1 1 . Scrap Searched 3 | . . . . 3 . Spaces Dug . | . . . . . . Terrain Destroyed 51 | . . . 31 . 20 Melee . | . . . . . . Projectile . | . . . . . . AOE 51 | . . . 31 . 20 Terrain Rammed . | . . . . . . Walls Destroyed . | . . . . . . Machines Disabled . | . . . . . . Actions | -11 -10 -10 -9 -9 -8 --------- Run | Yrd Mat Min Mat Min Mat Total 726 | . 167 157 96 106 200 Wait 11 | . 2 . 8 . 1 Move 646 | . 142 157 77 96 174 Hop . | . . . . . . Pick Up 9 | . 3 . . 3 3 Fast Attach 11 | . 1 . 2 3 5 Attach 1 | . . . 1 . . Detach 2 | . . . . 1 1 Swap . | . . . . . . Drop 9 | . 4 . . . 5 Fire 36 | . 14 . 8 3 11 Melee . | . . . . . . Ram . | . . . . . . Kick 1 | . 1 . . . . Crush . | . . . . . . Escape Stasis . | . . . . . . Rewire . | . . . . . . Trap . | . . . . . . Miscellaneous . | . . . . . . Route ------- -11/Scrapyard -10/Materials -10/Mines (discovered 2 exits: *Mat x2) -9/Materials -9/Mines -8/Materials (discovered 1 exit: [*Fac]) History --------- Turn | Location | Event 1 | -11/Scrapyard | Discovered new exit (range 0) 1 | -11/Scrapyard | Entered Materials 189 | -10/Materials | Identified exit to Mines 224 | -10/Materials | Entered Mines 293 | -10/Mines | Learned Materials stockpile data 313 | -10/Mines | Build established: Mutant 334 | -10/Mines | Discovered new exit (range 8) 361 | -10/Mines | Assembled infested the area 391 | -10/Mines | Learned Materials non-interactive machine intel 396 | -10/Mines | Core integrity fell below 50% 404 | -10/Mines | Discovered new exit (range 10) 417 | -10/Mines | Entered Materials 417 | -9/Materials | Evolved 2 slots: Utility x2 419 | -9/Materials | Loaded intel: 40 non-interactive machine locations 425 | -9/Materials | Lost 4 parts (1p1n2w) 524 | -9/Materials | Discovered new exit (range 18) 559 | -9/Materials | Entered Mines 600 | -9/Mines | Found a hidden stash of uninstalled traps 700 | -9/Mines | Discovered new exit (range 9) 774 | -9/Mines | Entered Materials 774 | -8/Materials | Evolved 2 slots: Utility x2 1126 | -8/Materials | Core integrity fell below 50% 1137 | -8/Materials | Core integrity fell below 20% 1167 | -8/Materials | Destroyed 9 combat bots 1173 | -8/Materials | Discovered new exit (range 16) 1188 | -8/Materials | Destroyed by G-47 Trooper with Particle Gun Last Messages --------------- Destroyed Missile Launcher. U-05 Engineer lays Concrete. W-25 Informer sends out distress signal. U-05 Engineer builds a Wall. U-05 Engineer lays Concrete. Med. Storage Unit destroyed. U-05 Engineer lays Concrete. The unstable cave ceiling collapses. U-05 Engineer lays Concrete. U-05 Engineer builds a Wall. U-05 Engineer lays Concrete. K-01 Serf collects debris. U-05 Engineer lays Concrete. EXIT=FOUND K-01 Serf cleans the Terminal. Triggered Alarm Trap. An alarm sounds. ALERT: Alarm triggered, dispatching investigation squad. Actuator Array destroyed. Map ----- +----------------------------------------------------+ | | | | | | | | | | | | | | | | | | | | | | | | | | | | | ?????????????????????????????????????????????????? | | ?????????????????????????????????????????????????? | | ?????????????????????????????????????????????????? | | ?????????????????????????????????????????????????? | | ?????????????????????????????????????????????????? | | ?????????????????????????????????????????????????? | | ?????????????????????????????????????????????????? | | ?????????????????????????????????????????????????? | | ??????????????????????#####??????????????????????? | | ??????????????????????# g #??????????????????????? | | ??????????????????????# g #??????????????????????? | | ??????????????????????# @#??????????????????????? | | ??????????????????????# #??????????????????????? | | ??????????????????????# #??????????????????????? | | ??????????????????????# #??????????????????????? | | ??????????????????????# #??????????????????????? | | ??????????????????????# #??????????????????????? | | ???????????############ #??????????????????????? | | ?????????? #??????????????????????? | | ?????????? ##########+####????????? | | ???????????######## #????????? | | ??????????????????# +????????? | | ??????????????????# #????????? | | ??????????????????# a #############?????????? | | ??????????????????# #?????????????????????? | | ??????????????????# #?????????????????????? | | ??????????????????# #?????????????????????? | | ??????????????????# #?????????????????????? | | ??????????????????# #?????????????????????? | | ??????????????????# ########??????????????? | | ??????????????????# #??????????????? | | ????????????????### #??????????????? | | ????????????????#"" #??????????????? | | ????????????????#"T """ """ #??????????????? | | ????????????????#"" """ """ #??????????????? | | ????????????????### """ """ #??????????????? | +----------------------------------------------------+ Best States ------------- Heat Dissipation 31 Energy Generation 10 Energy Capacity 250 Matter Stores 300 Matter Capacity 300 Sight Range 18 Terrain Scan Density 10 Evasion (%) 55 Recoil Reduction 1 Item Schematics ----------------- None Robot Schematics ------------------ None Fabricated ------------ Nothing Alien Tech Used ----------------- None Achievements -------------- None Challenges ------------ None Game ------ Seed SurgePortableCalibrator Manual? 0 Play Time 00:13:57 Cumulative 38.6 hours Start 2024.04.09 @ 19:33:34 End 2024.04.09 @ 20:01:02 Sessions 1 Manual Loads 0 Difficulty Rogue Special Mode None Game No. 104 Rogue 102 Adventurer 2 Explorer 0 Win Type - Total 0 Types 0/0/0/0/0/0/0/0/0 Lore% 28 Gallery% 35 Achievement% 26 Wizard Run 0 Options --------- Layout 2 ASCII 0 Keyboard 1 Movement Numpad Keybinds 1 Fullscreen 2 Font 24/Smallcaps Map View 50x44 Zoom Use 0% Tactical HUD 1 Map Filters NONE Filters NONE Steam 1 RUN: cfbed061-af3f-4530-bc8e-a1555e7ca83e